[Event "Titled Tuesday Blitz May 2 Early 2023"]
[White "Rodshtein, Maxim"]
[Black "Gulkov, Igor A."]
[WhiteFideId "2806851"]
[BlackFideId "4120973"]
[WhiteElo "2555"]
[BlackElo "2343"]
[Result "1-0"]
[Round "02"]
[TimeControl "180+2"]
[Date "2023.05.02"]
[WhiteClock "0:00:58"]
[BlackClock "0:01:40"]

1. d4 {[%clk 0:03:00]}  Nf6 {[%clk 0:02:59]} 2. Nf3 {[%clk 0:03:01]}  g6 {[%clk 0:02:59]} 3. Bf4 {[%clk 0:03:00]}  Bg7 {[%clk 0:02:58]} 4. e3 {[%clk 0:03:00]}  O-O {[%clk 0:02:58]} 5. c3 {[%clk 0:03:00]}  d6 {[%clk 0:02:58]} 6. h3 {[%clk 0:03:01]}  c5 {[%clk 0:02:58]} 7. dxc5 {[%clk 0:03:00]}  dxc5 {[%clk 0:02:57]} 8. Nbd2 {[%clk 0:03:01]}  Nc6 {[%clk 0:02:56]} 9. Be2 {[%clk 0:03:01]}  b6 {[%clk 0:02:49]} 10. O-O {[%clk 0:03:00]}  Bb7 {[%clk 0:02:49]} 11. Qc2 {[%clk 0:03:01]}  Nd5 {[%clk 0:02:47]} 12. Bh2 {[%clk 0:03:00]}  e5 {[%clk 0:02:47]} 13. Rfd1 {[%clk 0:02:59]}  Qe7 {[%clk 0:02:47]} 14. a4 {[%clk 0:02:54]}  Rad8 {[%clk 0:02:46]} 15. Bb5 {[%clk 0:02:50]}  f6 {[%clk 0:02:44]} 16. e4 {[%clk 0:02:21]}  Nc7 {[%clk 0:02:42]} 17. Nc4 {[%clk 0:02:08]}  Rxd1+ {[%clk 0:02:32]} 18. Rxd1 {[%clk 0:02:08]}  Rd8 {[%clk 0:02:31]} 19. Ra1 {[%clk 0:01:59]}  Bh6 {[%clk 0:02:18]} 20. Nfd2 {[%clk 0:01:47]}  Kg7 {[%clk 0:02:12]} 21. Nf1 {[%clk 0:01:45]}  Na8 {[%clk 0:01:58]} 22. a5 {[%clk 0:01:35]}  Qc7 {[%clk 0:01:51]} 23. axb6 {[%clk 0:01:28]}  axb6 {[%clk 0:01:51]} 24. Nfe3 {[%clk 0:01:28]}  Ne7 {[%clk 0:01:50]} 25. Ng4 {[%clk 0:01:04]}  Bg5 {[%clk 0:01:40]} 26. Ncxe5 {[%clk 0:00:58]} 1-0


[Site "https://www.chess.com"]

[Event "Titled Tuesday Blitz May 2 Early 2023"]
[White "Shukhman, Anna"]
[Black "Indjic, Aleksandar"]
[WhiteFideId "54180058"]
[BlackFideId "911925"]
[WhiteElo "2125"]
[BlackElo "2614"]
[Result "0-1"]
[Round "02"]
[TimeControl "180+2"]
[Date "2023.05.02"]
[WhiteClock "0:00:00"]
[BlackClock "0:00:00"]

1. e4 {[%clk 0:00:01]}  e5 {[%clk 0:00:01]} 2. Nf3 {[%clk 0:00:01]}  Nc6 {[%clk 0:00:01]} 3. Bb5 {[%clk 0:00:01]}  a6 {[%clk 0:00:01]} 4. Ba4 {[%clk 0:00:01]}  Bc5 {[%clk 0:00:01]} 5. O-O {[%clk 0:00:01]}  d6 {[%clk 0:00:01]} 6. c3 {[%clk 0:00:01]}  Bd7 {[%clk 0:00:01]} 7. d4 {[%clk 0:00:01]}  Ba7 {[%clk 0:00:01]} 8. dxe5 {[%clk 0:00:01]}  Nxe5 {[%clk 0:00:01]} 9. Nxe5 {[%clk 0:00:01]}  dxe5 {[%clk 0:00:01]} 10. Bxd7+ {[%clk 0:00:01]}  Qxd7 {[%clk 0:00:01]} 11. Qb3 {[%clk 0:00:01]}  Qc6 {[%clk 0:00:01]} 12. Bg5 {[%clk 0:00:01]}  Nf6 {[%clk 0:00:01]} 13. Bxf6 {[%clk 0:00:01]}  gxf6 {[%clk 0:00:01]} 14. Nd2 {[%clk 0:00:01]}  Rg8 {[%clk 0:00:01]} 15. Rad1 {[%clk 0:00:01]}  f5 {[%clk 0:00:01]} 16. Qd5 {[%clk 0:00:01]}  Qxd5 {[%clk 0:00:01]} 17. exd5 {[%clk 0:00:01]}  O-O-O {[%clk 0:00:01]} 18. Nc4 {[%clk 0:00:01]}  f6 {[%clk 0:00:01]} 19. Ne3 {[%clk 0:00:01]}  Rg5 {[%clk 0:00:01]} 20. c4 {[%clk 0:00:01]}  f4 {[%clk 0:00:01]} 21. Nc2 {[%clk 0:00:01]}  f3 {[%clk 0:00:01]} 22. g3 {[%clk 0:00:01]}  e4 {[%clk 0:00:01]} 23. Nd4 {[%clk 0:00:01]}  Rdg8 {[%clk 0:00:01]} 24. b4 {[%clk 0:00:01]}  h5 {[%clk 0:00:01]} 25. h4 {[%clk 0:00:01]}  Re5 {[%clk 0:00:01]} 26. Rfe1 {[%clk 0:00:01]}  f5 {[%clk 0:00:01]} 27. Kh2 {[%clk 0:00:01]}  Rge8 {[%clk 0:00:01]} 28. c5 {[%clk 0:00:00]}  Rxd5 {[%clk 0:00:00]} 29. Nc2 {[%clk 0:00:00]}  Rxd1 {[%clk 0:00:00]} 30. Rxd1 {[%clk 0:00:00]}  b6 {[%clk 0:00:00]} 31. Rd5 {[%clk 0:00:00]}  bxc5 {[%clk 0:00:00]} 32. bxc5 {[%clk 0:00:00]}  Rd8 {[%clk 0:00:00]} 33. Rxd8+ {[%clk 0:00:00]}  Kxd8 {[%clk 0:00:00]} 34. Nd4 {[%clk 0:00:00]}  Kd7 {[%clk 0:00:00]} 35. Nxf5 {[%clk 0:00:00]}  Bxc5 {[%clk 0:00:00]} 36. g4 {[%clk 0:00:00]}  Bxf2 {[%clk 0:00:00]} 37. gxh5 {[%clk 0:00:00]}  Ke6 {[%clk 0:00:00]} 38. h6 {[%clk 0:00:00]}  Kxf5 {[%clk 0:00:00]} 39. h7 {[%clk 0:00:00]}  Bd4 {[%clk 0:00:00]} 0-1


[Site "https://www.chess.com"]

[Event "Titled Tuesday Blitz May 2 Early 2023"]
[White "Hua, Lefong"]
[Black "Melikhov, Evgeny V."]
[WhiteFideId "2602253"]
[BlackFideId "4122046"]
[WhiteElo "2305"]
[BlackElo "2158"]
[Result "1-0"]
[Round "02"]
[TimeControl "180+2"]
[Date "2023.05.02"]
[WhiteClock "0:00:00"]
[BlackClock "0:00:00"]

1. d4 {[%clk 0:00:01]}  Nf6 {[%clk 0:00:01]} 2. c4 {[%clk 0:00:01]}  e5 {[%clk 0:00:01]} 3. dxe5 {[%clk 0:00:01]}  Ng4 {[%clk 0:00:01]} 4. Bf4 {[%clk 0:00:01]}  Bb4+ {[%clk 0:00:01]} 5. Nd2 {[%clk 0:00:01]}  Nc6 {[%clk 0:00:01]} 6. Nf3 {[%clk 0:00:01]}  Qe7 {[%clk 0:00:01]} 7. e3 {[%clk 0:00:01]}  Ngxe5 {[%clk 0:00:01]} 8. Nxe5 {[%clk 0:00:01]}  Nxe5 {[%clk 0:00:01]} 9. Be2 {[%clk 0:00:01]}  O-O {[%clk 0:00:01]} 10. O-O {[%clk 0:00:01]}  Bxd2 {[%clk 0:00:01]} 11. Qxd2 {[%clk 0:00:01]}  d6 {[%clk 0:00:01]} 12. b4 {[%clk 0:00:01]}  b6 {[%clk 0:00:01]} 13. Qc3 {[%clk 0:00:01]}  c5 {[%clk 0:00:01]} 14. bxc5 {[%clk 0:00:01]}  bxc5 {[%clk 0:00:01]} 15. Rfd1 {[%clk 0:00:01]}  Bb7 {[%clk 0:00:01]} 16. Rab1 {[%clk 0:00:01]}  Bc6 {[%clk 0:00:01]} 17. Rd2 {[%clk 0:00:01]}  Rfd8 {[%clk 0:00:01]} 18. Bg3 {[%clk 0:00:01]}  Rd7 {[%clk 0:00:01]} 19. Qc2 {[%clk 0:00:01]}  h6 {[%clk 0:00:01]} 20. Rbd1 {[%clk 0:00:01]}  Rad8 {[%clk 0:00:01]} 21. h3 {[%clk 0:00:01]}  Qe6 {[%clk 0:00:01]} 22. Kh2 {[%clk 0:00:01]}  Qe7 {[%clk 0:00:01]} 23. Bf1 {[%clk 0:00:01]}  Qe6 {[%clk 0:00:01]} 24. a4 {[%clk 0:00:01]}  Qe7 {[%clk 0:00:01]} 25. a5 {[%clk 0:00:01]}  a6 {[%clk 0:00:01]} 26. Rb1 {[%clk 0:00:01]}  Rb7 {[%clk 0:00:00]} 27. Rb6 {[%clk 0:00:00]}  Rxb6 {[%clk 0:00:00]} 28. axb6 {[%clk 0:00:00]}  Bb7 {[%clk 0:00:00]} 29. Qb2 {[%clk 0:00:00]}  Nc6 {[%clk 0:00:00]} 30. Be2 {[%clk 0:00:00]}  Nb4 {[%clk 0:00:00]} 31. Qc1 {[%clk 0:00:00]}  a5 {[%clk 0:00:00]} 32. Qd1 {[%clk 0:00:00]}  d5 {[%clk 0:00:00]} 33. Bc7 {[%clk 0:00:00]}  Ra8 {[%clk 0:00:00]} 34. cxd5 {[%clk 0:00:00]}  a4 {[%clk 0:00:00]} 35. d6 {[%clk 0:00:00]}  Qd7 {[%clk 0:00:00]} 36. Bg4 {[%clk 0:00:00]}  f5 {[%clk 0:00:00]} 37. Bf3 {[%clk 0:00:00]}  Be4 {[%clk 0:00:00]} 38. Bxe4 {[%clk 0:00:00]}  fxe4 {[%clk 0:00:00]} 39. b7 {[%clk 0:00:00]}  Re8 {[%clk 0:00:00]} 40. b8=Q {[%clk 0:00:00]}  Rxb8 {[%clk 0:00:00]} 41. Bxb8 {[%clk 0:00:00]}  a3 {[%clk 0:00:00]} 42. Qb3+ {[%clk 0:00:00]}  Kh7 {[%clk 0:00:00]} 43. Qxa3 {[%clk 0:00:00]} 1-0


[Site "https://www.chess.com"]

[Event "Titled Tuesday Blitz May 2 Early 2023"]
[White "Semenenko, Dmytry"]
[Black "Skliarov, Viktor"]
[WhiteFideId "14118645"]
[BlackFideId "14106736"]
[WhiteElo "2113"]
[BlackElo "2317"]
[Result "0-1"]
[Round "02"]
[TimeControl "180+2"]
[Date "2023.05.02"]
[WhiteClock "0:00:00"]
[BlackClock "0:00:00"]

1. Nf3 {[%clk 0:00:01]}  g6 {[%clk 0:00:01]} 2. c4 {[%clk 0:00:01]}  Bg7 {[%clk 0:00:01]} 3. d4 {[%clk 0:00:01]}  Nf6 {[%clk 0:00:01]} 4. Nc3 {[%clk 0:00:01]}  O-O {[%clk 0:00:01]} 5. e3 {[%clk 0:00:01]}  c6 {[%clk 0:00:01]} 6. Be2 {[%clk 0:00:01]}  d5 {[%clk 0:00:01]} 7. O-O {[%clk 0:00:01]}  Bg4 {[%clk 0:00:01]} 8. Ne5 {[%clk 0:00:01]}  Bxe2 {[%clk 0:00:01]} 9. Qxe2 {[%clk 0:00:01]}  Nbd7 {[%clk 0:00:01]} 10. f4 {[%clk 0:00:01]}  e6 {[%clk 0:00:01]} 11. b3 {[%clk 0:00:01]}  c5 {[%clk 0:00:01]} 12. Ba3 {[%clk 0:00:01]}  Re8 {[%clk 0:00:01]} 13. dxc5 {[%clk 0:00:01]}  Nxe5 {[%clk 0:00:01]} 14. fxe5 {[%clk 0:00:01]}  Ne4 {[%clk 0:00:01]} 15. Nxe4 {[%clk 0:00:01]}  dxe4 {[%clk 0:00:01]} 16. Bb2 {[%clk 0:00:01]}  Qc7 {[%clk 0:00:01]} 17. Qf2 {[%clk 0:00:01]}  Re7 {[%clk 0:00:01]} 18. Qf4 {[%clk 0:00:01]}  Qxc5 {[%clk 0:00:01]} 19. Qxe4 {[%clk 0:00:01]}  Rd8 {[%clk 0:00:01]} 20. Bd4 {[%clk 0:00:01]}  Qa5 {[%clk 0:00:01]} 21. a3 {[%clk 0:00:01]}  a6 {[%clk 0:00:00]} 22. b4 {[%clk 0:00:01]}  Qc7 {[%clk 0:00:00]} 23. Bc5 {[%clk 0:00:01]}  Red7 {[%clk 0:00:00]} 24. Bd6 {[%clk 0:00:01]}  Rxd6 {[%clk 0:00:00]} 25. exd6 {[%clk 0:00:01]}  Rxd6 {[%clk 0:00:00]} 26. Rad1 {[%clk 0:00:01]}  Rc6 {[%clk 0:00:00]} 27. c5 {[%clk 0:00:01]}  b6 {[%clk 0:00:00]} 28. Qd3 {[%clk 0:00:00]}  bxc5 {[%clk 0:00:00]} 29. Qd8+ {[%clk 0:00:00]}  Bf8 {[%clk 0:00:00]} 30. bxc5 {[%clk 0:00:00]}  Qxd8 {[%clk 0:00:00]} 31. Rxd8 {[%clk 0:00:00]}  Rxc5 {[%clk 0:00:00]} 32. Rd7 {[%clk 0:00:00]}  f5 {[%clk 0:00:00]} 33. Rb1 {[%clk 0:00:00]}  Rc8 {[%clk 0:00:00]} 34. a4 {[%clk 0:00:00]}  Bc5 {[%clk 0:00:00]} 35. Rbb7 {[%clk 0:00:00]}  Bxe3+ {[%clk 0:00:00]} 36. Kf1 {[%clk 0:00:00]}  Bh6 {[%clk 0:00:00]} 37. Rxh7 {[%clk 0:00:00]}  Bf8 {[%clk 0:00:00]} 38. Rhc7 {[%clk 0:00:00]}  Rxc7 {[%clk 0:00:00]} 39. Rxc7 {[%clk 0:00:00]}  a5 {[%clk 0:00:00]} 40. Ra7 {[%clk 0:00:00]}  Bb4 {[%clk 0:00:00]} 41. Ke2 {[%clk 0:00:00]}  e5 {[%clk 0:00:00]} 42. Kd3 {[%clk 0:00:00]}  e4+ {[%clk 0:00:00]} 43. Kd4 {[%clk 0:00:00]}  Kf8 {[%clk 0:00:00]} 44. Rb7 {[%clk 0:00:00]}  Kg8 {[%clk 0:00:00]} 45. Ke3 {[%clk 0:00:00]}  Bc3 {[%clk 0:00:00]} 46. Kf4 {[%clk 0:00:00]}  Kf8 {[%clk 0:00:00]} 47. Kg5 {[%clk 0:00:00]}  e3 {[%clk 0:00:00]} 48. Rb8+ {[%clk 0:00:00]}  Ke7 {[%clk 0:00:00]} 49. Rb7+ {[%clk 0:00:00]}  Kd8 {[%clk 0:00:00]} 50. Rb8+ {[%clk 0:00:00]}  Kd7 {[%clk 0:00:00]} 51. Rb7+ {[%clk 0:00:00]}  Kd6 {[%clk 0:00:00]} 52. Rb6+ {[%clk 0:00:00]}  Kd5 {[%clk 0:00:00]} 53. Rb8 {[%clk 0:00:00]}  e2 {[%clk 0:00:00]} 54. Re8 {[%clk 0:00:00]}  Be5 {[%clk 0:00:00]} 55. Rd8+ {[%clk 0:00:00]}  Ke4 {[%clk 0:00:00]} 56. Re8 {[%clk 0:00:00]}  e1=Q {[%clk 0:00:00]} 57. Kxg6 {[%clk 0:00:00]}  Qe2 {[%clk 0:00:00]} 58. Kf7 {[%clk 0:00:00]}  Qxg2 {[%clk 0:00:00]} 59. Re7 {[%clk 0:00:00]}  Qxh2 {[%clk 0:00:00]} 60. Ke8 {[%clk 0:00:00]}  Qh8+ {[%clk 0:00:00]} 61. Kd7 {[%clk 0:00:00]}  Qf6 {[%clk 0:00:00]} 62. Re6 {[%clk 0:00:00]}  Qxe6+ {[%clk 0:00:00]} 63. Kxe6 {[%clk 0:00:00]}  f4 {[%clk 0:00:00]} 64. Kd7 {[%clk 0:00:00]}  Bc3 {[%clk 0:00:00]} 65. Kc6 {[%clk 0:00:00]}  Bb4 {[%clk 0:00:00]} 66. Kb5 {[%clk 0:00:00]}  f3 {[%clk 0:00:00]} 67. Kc4 {[%clk 0:00:00]}  f2 {[%clk 0:00:00]} 68. Kb5 {[%clk 0:00:00]}  f1=Q+ {[%clk 0:00:00]} 0-1


[Site "https://www.chess.com"]

[Event "Titled Tuesday Blitz May 2 Early 2023"]
[White "Mitrabha, Guha"]
[Black "Osinovsky, Stepan"]
[WhiteFideId "5057000"]
[BlackFideId "4157354"]
[WhiteElo "2507"]
[BlackElo "2222"]
[Result "0-1"]
[Round "02"]
[TimeControl "180+2"]
[Date "2023.05.02"]
[WhiteClock "0:00:04"]
[BlackClock "0:00:16"]

1. Nf3 {[%clk 0:03:00]}  Nf6 {[%clk 0:02:59]} 2. c4 {[%clk 0:02:55]}  g6 {[%clk 0:03:00]} 3. b3 {[%clk 0:02:52]}  Bg7 {[%clk 0:03:01]} 4. Bb2 {[%clk 0:02:52]}  O-O {[%clk 0:03:02]} 5. g3 {[%clk 0:02:51]}  d6 {[%clk 0:03:03]} 6. Bg2 {[%clk 0:02:51]}  e5 {[%clk 0:03:02]} 7. O-O {[%clk 0:02:52]}  Re8 {[%clk 0:03:01]} 8. Nc3 {[%clk 0:02:52]}  Nc6 {[%clk 0:02:57]} 9. d3 {[%clk 0:02:52]}  e4 {[%clk 0:02:32]} 10. Nxe4 {[%clk 0:02:45]}  Nxe4 {[%clk 0:02:31]} 11. Bxg7 {[%clk 0:02:46]}  Kxg7 {[%clk 0:02:12]} 12. dxe4 {[%clk 0:02:43]}  Rxe4 {[%clk 0:02:13]} 13. Qd2 {[%clk 0:02:41]}  Qf6 {[%clk 0:02:02]} 14. e3 {[%clk 0:02:31]}  Bg4 {[%clk 0:01:50]} 15. Nd4 {[%clk 0:02:07]}  Re5 {[%clk 0:01:11]} 16. Nxc6 {[%clk 0:01:56]}  bxc6 {[%clk 0:01:10]} 17. Bxc6 {[%clk 0:01:56]}  Bf3 {[%clk 0:01:04]} 18. Bxa8 {[%clk 0:01:54]}  Bxa8 {[%clk 0:01:05]} 19. f4 {[%clk 0:01:54]}  Re4 {[%clk 0:01:02]} 20. Rf2 {[%clk 0:01:50]}  Qe6 {[%clk 0:01:01]} 21. Re1 {[%clk 0:01:47]}  h5 {[%clk 0:00:58]} 22. Qc3+ {[%clk 0:01:37]}  Kh7 {[%clk 0:00:53]} 23. c5 {[%clk 0:01:37]}  Qd5 {[%clk 0:00:41]} 24. Rd2 {[%clk 0:01:32]}  Qc6 {[%clk 0:00:37]} 25. Qf6 {[%clk 0:01:28]}  Kg8 {[%clk 0:00:19]} 26. Qc3 {[%clk 0:00:19]}  Rc4 {[%clk 0:00:16]} 27. e4 {[%clk 0:00:06]}  Rxc3 {[%clk 0:00:15]} 28. cxd6 {[%clk 0:00:07]}  cxd6 {[%clk 0:00:15]} 29. e5 {[%clk 0:00:07]}  Qh1+ {[%clk 0:00:15]} 30. Kf2 {[%clk 0:00:04]}  Qg2# {[%clk 0:00:16]} 0-1


[Site "https://www.chess.com"]

[Event "Titled Tuesday Blitz May 2 Early 2023"]
[White "Gabrielian, Artur"]
[Black "Tymrakiewicz, Rafal"]
[WhiteFideId "4131002"]
[BlackFideId "1108832"]
[WhiteElo "2432"]
[BlackElo "2151"]
[Result "0-1"]
[Round "02"]
[TimeControl "180+2"]
[Date "2023.05.02"]
[WhiteClock "0:00:00"]
[BlackClock "0:00:00"]

1. e4 {[%clk 0:00:01]}  Nf6 {[%clk 0:00:01]} 2. e5 {[%clk 0:00:01]}  Nd5 {[%clk 0:00:01]} 3. c4 {[%clk 0:00:01]}  Nb6 {[%clk 0:00:01]} 4. c5 {[%clk 0:00:01]}  Nd5 {[%clk 0:00:01]} 5. Nc3 {[%clk 0:00:01]}  c6 {[%clk 0:00:01]} 6. d4 {[%clk 0:00:01]}  b6 {[%clk 0:00:01]} 7. Nxd5 {[%clk 0:00:01]}  cxd5 {[%clk 0:00:01]} 8. cxb6 {[%clk 0:00:01]}  Qxb6 {[%clk 0:00:01]} 9. Nf3 {[%clk 0:00:01]}  Nc6 {[%clk 0:00:01]} 10. Be2 {[%clk 0:00:01]}  Ba6 {[%clk 0:00:01]} 11. Be3 {[%clk 0:00:01]}  e6 {[%clk 0:00:01]} 12. O-O {[%clk 0:00:01]}  Bxe2 {[%clk 0:00:01]} 13. Qxe2 {[%clk 0:00:01]}  Be7 {[%clk 0:00:01]} 14. Rfd1 {[%clk 0:00:01]}  O-O {[%clk 0:00:01]} 15. Rac1 {[%clk 0:00:01]}  a5 {[%clk 0:00:01]} 16. Ne1 {[%clk 0:00:01]}  f6 {[%clk 0:00:01]} 17. Nd3 {[%clk 0:00:01]}  Rab8 {[%clk 0:00:01]} 18. b3 {[%clk 0:00:01]}  Rfc8 {[%clk 0:00:01]} 19. Qg4 {[%clk 0:00:01]}  f5 {[%clk 0:00:01]} 20. Qe2 {[%clk 0:00:01]}  Ba3 {[%clk 0:00:01]} 21. Nc5 {[%clk 0:00:01]}  Bxc1 {[%clk 0:00:00]} 22. Rxc1 {[%clk 0:00:01]}  Qb5 {[%clk 0:00:00]} 23. Qd2 {[%clk 0:00:00]}  Nb4 {[%clk 0:00:00]} 24. h4 {[%clk 0:00:00]}  Na6 {[%clk 0:00:00]} 25. a4 {[%clk 0:00:00]}  Qc6 {[%clk 0:00:00]} 26. Qxa5 {[%clk 0:00:00]}  Nxc5 {[%clk 0:00:00]} 27. Rxc5 {[%clk 0:00:00]}  Qb7 {[%clk 0:00:00]} 28. Rb5 {[%clk 0:00:00]}  Qc6 {[%clk 0:00:00]} 29. Rc5 {[%clk 0:00:00]}  Qb7 {[%clk 0:00:00]} 30. Rb5 {[%clk 0:00:00]}  Qc6 {[%clk 0:00:00]} 31. Qb4 {[%clk 0:00:00]}  Rxb5 {[%clk 0:00:00]} 32. axb5 {[%clk 0:00:00]}  Qc7 {[%clk 0:00:00]} 33. h5 {[%clk 0:00:00]}  h6 {[%clk 0:00:00]} 34. Bd2 {[%clk 0:00:00]}  Kf7 {[%clk 0:00:00]} 35. b6 {[%clk 0:00:00]}  Qc6 {[%clk 0:00:00]} 36. Qa5 {[%clk 0:00:00]}  Rb8 {[%clk 0:00:00]} 37. Qa7 {[%clk 0:00:00]}  Rxb6 {[%clk 0:00:00]} 38. b4 {[%clk 0:00:00]}  Rb7 {[%clk 0:00:00]} 39. Qa8 {[%clk 0:00:00]}  Rc7 {[%clk 0:00:00]} 40. Qd8 {[%clk 0:00:00]}  Rc8 {[%clk 0:00:00]} 41. Qa5 {[%clk 0:00:00]}  Ra8 {[%clk 0:00:00]} 42. b5 {[%clk 0:00:00]}  Rxa5 {[%clk 0:00:00]} 43. bxc6 {[%clk 0:00:00]}  Ra1+ {[%clk 0:00:00]} 44. Kh2 {[%clk 0:00:00]}  dxc6 {[%clk 0:00:00]} 45. Bb4 {[%clk 0:00:00]}  Rd1 {[%clk 0:00:00]} 46. Bc5 {[%clk 0:00:00]}  g6 {[%clk 0:00:00]} 47. hxg6+ {[%clk 0:00:00]}  Kxg6 {[%clk 0:00:00]} 48. f3 {[%clk 0:00:00]}  f4 {[%clk 0:00:00]} 49. Kh3 {[%clk 0:00:00]}  Kf5 {[%clk 0:00:00]} 50. g4+ {[%clk 0:00:00]}  fxg3 {[%clk 0:00:00]} 51. Kxg3 {[%clk 0:00:00]}  Rd3 {[%clk 0:00:00]} 52. Bb6 {[%clk 0:00:00]}  h5 {[%clk 0:00:00]} 53. Bc5 {[%clk 0:00:00]}  h4+ {[%clk 0:00:00]} 0-1


[Site "https://www.chess.com"]

[Event "Titled Tuesday Blitz May 2 Early 2023"]
[White "Pakleza, Zbigniew"]
[Black "Balla, Tamas-Kristof"]
[WhiteFideId "1119290"]
[BlackFideId "1208497"]
[WhiteElo "2410"]
[BlackElo "2334"]
[Result "1-0"]
[Round "02"]
[TimeControl "180+2"]
[Date "2023.05.02"]
[WhiteClock "0:00:00"]
[BlackClock "0:00:00"]

1. d4 {[%clk 0:00:01]}  d5 {[%clk 0:00:01]} 2. Bf4 {[%clk 0:00:01]}  Nf6 {[%clk 0:00:01]} 3. e3 {[%clk 0:00:01]}  e6 {[%clk 0:00:01]} 4. Nd2 {[%clk 0:00:01]}  Bd6 {[%clk 0:00:01]} 5. Bg3 {[%clk 0:00:01]}  O-O {[%clk 0:00:01]} 6. Ngf3 {[%clk 0:00:01]}  b6 {[%clk 0:00:01]} 7. c3 {[%clk 0:00:01]}  c5 {[%clk 0:00:01]} 8. Ne5 {[%clk 0:00:01]}  Qc7 {[%clk 0:00:01]} 9. f4 {[%clk 0:00:01]}  Ba6 {[%clk 0:00:01]} 10. Bxa6 {[%clk 0:00:01]}  Nxa6 {[%clk 0:00:01]} 11. Qf3 {[%clk 0:00:01]}  Nb8 {[%clk 0:00:01]} 12. Bh4 {[%clk 0:00:01]}  Nfd7 {[%clk 0:00:01]} 13. O-O {[%clk 0:00:01]}  Nc6 {[%clk 0:00:01]} 14. Rac1 {[%clk 0:00:01]}  f6 {[%clk 0:00:01]} 15. Nd3 {[%clk 0:00:01]}  Ne7 {[%clk 0:00:01]} 16. e4 {[%clk 0:00:01]}  Qb7 {[%clk 0:00:01]} 17. Rfe1 {[%clk 0:00:00]}  Rae8 {[%clk 0:00:01]} 18. Bf2 {[%clk 0:00:00]}  c4 {[%clk 0:00:00]} 19. Nb4 {[%clk 0:00:00]}  a5 {[%clk 0:00:00]} 20. Nc2 {[%clk 0:00:00]}  Bb8 {[%clk 0:00:00]} 21. exd5 {[%clk 0:00:00]}  exd5 {[%clk 0:00:00]} 22. Nxc4 {[%clk 0:00:00]}  Qc7 {[%clk 0:00:00]} 23. N4e3 {[%clk 0:00:00]}  Qxf4 {[%clk 0:00:00]} 24. Bg3 {[%clk 0:00:00]}  Qxf3 {[%clk 0:00:00]} 25. gxf3 {[%clk 0:00:00]}  f5 {[%clk 0:00:00]} 26. Bxb8 {[%clk 0:00:00]}  Nxb8 {[%clk 0:00:00]} 27. Na3 {[%clk 0:00:00]}  Nd7 {[%clk 0:00:00]} 28. Nb5 {[%clk 0:00:00]}  Nf6 {[%clk 0:00:00]} 29. Nd6 {[%clk 0:00:00]}  Rd8 {[%clk 0:00:00]} 30. Ndxf5 {[%clk 0:00:00]}  Nxf5 {[%clk 0:00:00]} 31. Nxf5 {[%clk 0:00:00]}  Nh5 {[%clk 0:00:00]} 32. Re5 {[%clk 0:00:00]}  g6 {[%clk 0:00:00]} 33. Ne7+ {[%clk 0:00:00]}  Kh8 {[%clk 0:00:00]} 34. Nxd5 {[%clk 0:00:00]}  Rxf3 {[%clk 0:00:00]} 35. Rf1 {[%clk 0:00:00]}  Rd3 {[%clk 0:00:00]} 36. Nxb6 {[%clk 0:00:00]}  Rd2 {[%clk 0:00:00]} 37. Nc4 {[%clk 0:00:00]}  Rc2 {[%clk 0:00:00]} 38. Rf2 {[%clk 0:00:00]}  Rc1+ {[%clk 0:00:00]} 39. Kg2 {[%clk 0:00:00]}  Ng7 {[%clk 0:00:00]} 40. Ne3 {[%clk 0:00:00]}  Ra1 {[%clk 0:00:00]} 41. a3 {[%clk 0:00:00]}  Rc1 {[%clk 0:00:00]} 42. Rxa5 {[%clk 0:00:00]}  Nh5 {[%clk 0:00:00]} 43. Re5 {[%clk 0:00:00]}  Ng7 {[%clk 0:00:00]} 44. d5 {[%clk 0:00:00]}  Ne8 {[%clk 0:00:00]} 45. c4 {[%clk 0:00:00]}  Nd6 {[%clk 0:00:00]} 46. b3 {[%clk 0:00:00]}  Rc3 {[%clk 0:00:00]} 47. Rb2 {[%clk 0:00:00]}  Nf7 {[%clk 0:00:00]} 48. Re7 {[%clk 0:00:00]}  Ng5 {[%clk 0:00:00]} 49. Ng4 {[%clk 0:00:00]}  Kg8 {[%clk 0:00:00]} 50. h4 {[%clk 0:00:00]}  Nf7 {[%clk 0:00:00]} 51. Rf2 {[%clk 0:00:00]}  Rf8 {[%clk 0:00:00]} 52. Rfxf7 {[%clk 0:00:00]}  Rxf7 {[%clk 0:00:00]} 53. Nh6+ {[%clk 0:00:00]}  Kf8 {[%clk 0:00:00]} 54. Rxf7+ {[%clk 0:00:00]}  Ke8 {[%clk 0:00:00]} 55. Rb7 {[%clk 0:00:00]}  Rc2+ {[%clk 0:00:00]} 56. Kf3 {[%clk 0:00:00]}  Rc3+ {[%clk 0:00:00]} 57. Ke4 {[%clk 0:00:00]}  Rh3 {[%clk 0:00:00]} 58. Ng4 {[%clk 0:00:00]}  Rxh4 {[%clk 0:00:00]} 59. Kf3 {[%clk 0:00:00]}  h5 {[%clk 0:00:00]} 60. Ne5 {[%clk 0:00:00]}  Rh3+ {[%clk 0:00:00]} 61. Ke4 {[%clk 0:00:00]}  Rh4+ {[%clk 0:00:00]} 62. Kd3 {[%clk 0:00:00]}  Rh3+ {[%clk 0:00:00]} 63. Kd4 {[%clk 0:00:00]}  Rh4+ {[%clk 0:00:00]} 64. Kc5 {[%clk 0:00:00]}  Kd8 {[%clk 0:00:00]} 65. Kc6 {[%clk 0:00:00]}  Re4 {[%clk 0:00:00]} 66. Nf7+ {[%clk 0:00:00]}  Ke8 {[%clk 0:00:00]} 67. Nd6+ {[%clk 0:00:00]}  Kf8 {[%clk 0:00:00]} 68. Nxe4 {[%clk 0:00:00]} 1-0


[Site "https://www.chess.com"]